[Event "26th Triest Festival 2024"]
[Site "Triest"]
[Date "2024.09.03"]
[Round "5.6"]
[White "Lumachi, Gabriele"]
[Black "Fischer, Daniel"]
[Result "1/2-1/2"]
[Annotator "TA"]
[ECO "A12"]
[WhiteElo "2440"]
[BlackElo "2349"]
[PlyCount "104"]
[EventDate "2024.09.02"]
[EventType "swiss"]
[EventCountry "ITA"]
[SourceTitle "playchess.com"]
[Source "ChessBase"]
[SourceQuality "1"]
[TimeControl "5400+30"]

{[%evp 26,104,0,7,6,6,13,0,0,0,2,6,14,0,16,21,17,0,0,0,31,22,49,0,0,0,0,0,0,-16,143,140,147,55,49,44,37,39,29,8,8,8,8,8,8,8,8,8,8,0,0,0,0,0,0,-6,0,0,0,0,0,0,0,0,0,0,0,0,0,0,0,0,0,0,0,0,0,0,0,0,0]} 1. Nf3 {[%emt 0:00:51]} d5 {[%emt 0:00:07]} 2. b3 {[%emt 0:00:05]} Bf5 {[%emt 0:00:37]} 3. Bb2 {[%emt 0:00:25]} e6 {[%emt 0:00:42]} 4. g3 {[%emt 0:00:06]} Nf6 {[%emt 0:00:33]} 5. Bg2 {[%emt 0:00:06]} Be7 {[%emt 0:00:59]} 6. O-O {[%emt 0:00:14]} h6 {[%emt 0:00:20]} 7. d3 {[%emt 0:00:15]} O-O {[%emt 0:00:24]} 8. Nbd2 {[%emt 0:00:07]} c6 {[%emt 0:00:43]} 9. c4 {[%emt 0:00:19]} a5 {[%emt 0:01:47]} 10. a3 {[%emt 0:00:06]} Bh7 {[%emt 0:01:05]} 11. Qc2 {[%emt 0:01:11]} Nbd7 {[%emt 0:02:56][%cal Bb8d7,Bd7b6,Bb6a4][%mdl 32]} 12. Bc3 {[%emt 0:00:06]} b5 {[%emt 0:05:36]} 13. cxb5 {[%emt 0:00:34]} cxb5 {[%emt 0:00:05]} 14. b4 {[%emt 0:00:21]} Qc7 {[%emt 0:15:59] Threatens to win with ...Rfc8.} 15. Qb2 {[%emt 0:06:53]} Nb6 {[%emt 0:05:11]} 16. Be5 {[%emt 0:05:59]} Qb7 {[%emt 0:04:04]} 17. Rfc1 {[%emt 0:00:26]} Rfc8 {[%emt 0:03:50] Dodges Rc7} 18. bxa5 {[%emt 0:08:50]} Rxa5 {[%emt 0:02:19]} 19. Rxc8+ {[%emt 0:00:58]} Qxc8 {[%emt 0:02:46]} 20. Nb3 {[%emt 0:18:54]} Na4 {[%emt 0:19:45]} 21. Qd2 {[%emt 0:00:38]} Ra8 {[%emt 0:00:20]} 22. Bh3 {[%emt 0:24:07]} Nb6 {[%emt 0:05:48]} 23. Nbd4 {[%emt 0:02:22]} Nbd7 {[%emt 0:07:58]} 24. Rb1 {[%emt 0:12:37]} (24. Nxb5 $14 {feels stronger.} g5 25. Bxf6 Bxf6 26. Rc1) 24... Bxa3 {[%emt 0:05:04]} 25. Nxb5 {[%emt 0:03:18]} Nxe5 {[%emt 0:08:30]} 26. Nxe5 {[%emt 0:00:02]} Be7 {[%emt 0:02:02]} 27. Rc1 {[%emt 0:05:08]} Qb8 {[%emt 0:01:48] [#]} (27... Qb7 $1 $11 28. Nc6 Bf8) 28. Nc7 $1 $16 {[%emt 0:00:23] White has more active pieces. A dynamic duo of knights.} Ba3 {[%emt 0:00:13] [#]} 29. Nxa8 {[%emt 0:08:41]} ({White should try} 29. Rc6 $1 $16 Ra7 30. Nxe6) 29... Bxc1 $14 {[%emt 0:00:04]} 30. Qxc1 {[%emt 0:00:10]} Qxa8 {[%emt 0:00:19]} 31. Qc7 {[%emt 0:00:12]} Qe8 {[%emt 0:01:02]} 32. Nxf7 {[%emt 0:00:55]} Qxf7 {[%emt 0:00:27] The position is equal.} 33. Qc8+ {[%emt 0:00:09]} Qe8 $1 {[%emt 0:00:21]} 34. Qxe8+ {[%emt 0:00:16]} (34. Qxe6+ $2 Kf8 35. Qd6+ Qe7 36. Qb8+ Qe8 $19) 34... Nxe8 {[%emt 0:00:02]} 35. Bxe6+ {[%emt 0:00:08]} Kf8 {[%emt 0:00:03]} 36. Bxd5 {[%emt 0:00:08]} Ke7 {[%emt 0:00:21]} 37. f4 {[%emt 0:01:32]} Kd6 {[%emt 0:00:35]} 38. Bf3 {[%emt 0:00:15]} Kc5 {[%emt 0:00:26]} 39. Kf2 {[%emt 0:00:33]} Kd4 {[%emt 0:00:05]} 40. g4 {[%emt 0:00:21]} g5 {[%emt 0:01:30]} 41. Kg3 {[%emt 0:01:47]} Ke3 {[%emt 0:00:15]} 42. fxg5 {[%emt 0:00:12]} hxg5 {[%emt 0:00:02]} 43. h4 {[%emt 0:00:32]} gxh4+ {[%emt 0:01:01]} 44. Kxh4 {[%emt 0:00:07]} Bxd3 {[%emt 0:00:31]} 45. exd3 {[%emt 0:00:17]} Kxf3 $11 {[%emt 0:00:04][%mdl 4096] Endgame. KN-KPP} 46. Kg5 {[%emt 0:00:32]} Ke3 {[%emt 0:00:18]} 47. Kf5 {[%emt 0:00:26]} Kxd3 {[%emt 0:00:34]} 48. g5 {[%emt 0:00:05]} Ke3 {[%emt 0:01:08]} 49. g6 {[%emt 0:00:09]} Kf3 {[%emt 0:00:36]} 50. Ke6 {[%emt 0:00:12]} Kf4 {[%emt 0:00:18]} 51. Kf7 {[%emt 0:00:05]} Kf5 {[%emt 0:00:04]} 52. Kxe8 {[%emt 0:00:05]} Kxg6 {[%emt 0:00:35] Weighted Error Value: White=0.08 (flawless) /Black=0.11 (very precise) .  Mistake:       	White=2     	Black=1      Inaccurate:     	---       	Black=2      OK:         	White=17    	Black=19     Best:        	White=1     	Black=1      Strong:       	White=1     	Black=1} 1/2-1/2

[Event "26th Triest Festival 2024"]
[Site "Triest"]
[Date "2024.09.03"]
[Round "5.7"]
[White "Wong, Zhenyong Jayden"]
[Black "Simonetto, Andrea"]
[Result "1-0"]
[Annotator "TA"]
[ECO "D25"]
[WhiteElo "2397"]
[BlackElo "2323"]
[PlyCount "75"]
[EventDate "2024.09.02"]
[EventType "swiss"]
[EventCountry "ITA"]
[SourceTitle "playchess.com"]
[Source "ChessBase"]
[SourceQuality "1"]
[TimeControl "5400+30"]

{[%evp 14,75,23,15,23,22,76,13,0,0,16,11,13,16,7,18,22,35,27,8,8,14,8,0,11,0,0,0,0,0,0,0,25,18,13,16,6,24,106,107,164,161,437,447,501,511,606,581,646,687,3474,947,1091,751,712,677,848,701,922,1583,2145,4178,29960,29957]} 1. d4 {[%emt 0:01:49]} d5 {[%emt 0:00:06]} 2. c4 {[%emt 0:00:09]} dxc4 {[%emt 0:00:06]} 3. Nf3 {[%emt 0:00:29]} Nf6 {[%emt 0:00:05]} 4. e3 {[%emt 0:00:06]} Bg4 {[%emt 0:00:05]} 5. Bxc4 {[%emt 0:00:35]} e6 {[%emt 0:00:06]} 6. h3 {[%emt 0:03:42]} Bh5 {[%emt 0:00:13]} 7. Nc3 {[%emt 0:00:28]} Nbd7 {[%emt 0:00:10]} 8. O-O {[%emt 0:01:23]} Bb4 {[%emt 0:00:16]} 9. Be2 {[%emt 0:07:30]} c5 {[%emt 0:04:12] [#]} (9... O-O $11) 10. a3 {[%emt 0:10:22]} (10. Nb5 $1 $16 {a3 would now be deadly.} cxd4 11. Qxd4) 10... Bxc3 $11 {[%emt 0:04:58] The position is equal.} 11. bxc3 {[%emt 0:01:00]} O-O {[%emt 0:00:06]} 12. a4 {[%emt 0:15:35]} Qc7 {[%emt 0:02:32]} 13. Nd2 {[%emt 0:03:37]} Bxe2 {[%emt 0:10:54]} 14. Qxe2 {[%emt 0:00:01]} e5 {[%emt 0:00:10]} 15. Ba3 {[%emt 0:03:32]} Rfe8 {[%emt 0:01:44]} 16. Rfc1 {[%emt 0:02:02]} Rac8 {[%emt 0:08:23]} 17. Rab1 {[%emt 0:08:56]} Qc6 {[%emt 0:09:51]} 18. Qd1 {[%emt 0:09:35]} Qa6 {[%emt 0:13:03]} 19. Qb3 {[%emt 0:04:25]} cxd4 {[%emt 0:08:56]} 20. cxd4 {[%emt 0:00:39] Black must now prevent Rxc8.} Rxc1+ {[%emt 0:00:44]} 21. Rxc1 {[%emt 0:00:09] And now Nc4 would win.} exd4 {[%emt 0:01:40]} 22. exd4 {[%emt 0:00:32]} Nb6 {[%emt 0:03:43]} 23. Rc7 {[%emt 0:08:14]} Nfd5 $1 {[%emt 0:03:22]} 24. Rc5 {[%emt 0:00:06] aiming for a5.} Nf4 $1 {[%emt 0:04:33]} (24... Qxa4 25. Qxa4 (25. Rxd5 $2 Qxb3 26. Nxb3 Re1+ 27. Kh2 Nxd5 $19) 25... Nxa4 26. Rxd5 $18) 25. a5 {[%emt 0:02:06]} Nd7 {[%emt 0:03:33]} (25... Ne2+ $11 {remains equal.} 26. Kh2 Nxd4) 26. Rc7 $1 $16 {[%emt 0:00:24][%csl LRb7,LRd7]} Qg6 {[%emt 0:03:31] [#]} 27. Qf3 $1 $40 {[%emt 0:01:08][%mdl 128] White attacks with force.} (27. Rxd7 $2 Qxg2#) 27... Qf5 {[%emt 0:02:12]} (27... Nf6) 28. g4 {[%emt 0:04:17]} ({Not} 28. Rxb7 Nf6 29. Be7 (29. Rxa7 h5 $18) 29... N6d5 $18) (28. Qxb7 Ne2+ 29. Kh2 Qf4+ (29... Qxa5 $2 30. Rc8 $18) 30. g3 Qxf2+ (30... Qxd2 $2 31. Rc8 $16) 31. Qg2 Qxd4 $15) 28... Nxh3+ {[%emt 0:04:25]} 29. Qxh3 {[%emt 0:01:11]} Qxa5 {[%emt 0:00:40]} 30. Rxd7 {[%emt 0:02:07][%cal Oh3b3] Strongly threatening Qb3!} Qxd2 {[%emt 0:00:17]} 31. Qf3 {[%emt 0:01:06]} f6 {[%emt 0:01:33]} 32. Kg2 {[%emt 0:05:45]} (32. Re7 $142 Qe1+ 33. Rxe1 Rxe1+ 34. Kg2) 32... Kh8 {[%emt 0:00:04] [#]} 33. Qe3 $3 {[%emt 0:01:23][%mdl 512]} Qxe3 {[%emt 0:00:36]} 34. fxe3 {[%emt 0:00:03]} h5 {[%emt 0:00:08]} 35. Be7 {[%emt 0:02:32]} b5 {[%emt 0:01:31]} 36. d5 {[%emt 0:00:32] d6 is the strong threat.} Kg8 {[%emt 0:01:46]} 37. Rxa7 {[%emt 0:00:33]} Rb8 {[%emt 0:00:47]} 38. Bb4 {[%emt 0:00:30] Weighted Error Value: White=0.11 (very precise) /Black=0.52.  Mistake:       	White=1     	Black=4      Inaccurate:     	---       	Black=1      OK:         	White=6     	Black=5      Best:        	White=1     	Black=3      Strong:       	White=1     	Black=2} 1-0

[Event "26th Triest Festival 2024"]
[Site "Triest"]
[Date "2024.09.03"]
[Round "5.8"]
[White "Willems, Niels"]
[Black "Kanyamarala, Tarun"]
[Result "1/2-1/2"]
[Annotator "TA"]
[ECO "A17"]
[WhiteElo "2384"]
[BlackElo "2361"]
[PlyCount "58"]
[EventDate "2024.09.02"]
[EventType "swiss"]
[EventCountry "ITA"]
[SourceTitle "playchess.com"]
[Source "ChessBase"]
[SourceQuality "1"]
[TimeControl "5400+30"]

{[%evp 9,58,5,10,0,2,-6,53,0,36,29,37,39,33,33,24,0,-10,0,0,0,0,0,0,-5,0,-23,0,0,0,0,0,0,0,0,0,-7,0,0,0,0,7,0,0,-6,-6,-6,-7,-6,-7,-8,-5]} 1. c4 {[%emt 0:04:38]} e6 {[%emt 0:00:12]} 2. Nc3 {[%emt 0:00:38]} d5 {[%emt 0:00:15]} 3. e3 {[%emt 0:00:06]} Nf6 {[%emt 0:00:10]} 4. Nf3 {[%emt 0:00:06]} Nbd7 {[%emt 0:00:20]} 5. b3 {[%emt 0:00:51]} b6 {[%emt 0:00:13]} 6. cxd5 {[%emt 0:00:28]} exd5 {[%emt 0:00:08]} 7. g3 {[%emt 0:07:26]} Nc5 {[%emt 0:13:24]} (7... Bb4 $11) 8. Qc2 {[%emt 0:02:23]} ({White should try} 8. Ne5 $14) 8... Ba6 {[%emt 0:22:24]} 9. Ba3 {[%emt 0:16:30] Threatens to win with Bxc5.} Nd3+ {[%emt 0:09:46]} 10. Bxd3 {[%emt 0:00:06]} Bxd3 {[%emt 0:00:04]} 11. Qxd3 {[%emt 0:00:11]} Bxa3 {[%emt 0:00:04]} 12. b4 {[%emt 0:04:44] [#] Strongly threatening Na4.} O-O $1 {[%emt 0:04:07]} 13. Rb1 {[%emt 0:02:18] Nb5 is the strong threat.} c5 {[%emt 0:02:53]} 14. bxc5 {[%emt 0:02:18]} bxc5 {[%emt 0:00:37]} 15. O-O {[%emt 0:02:49]} Bb4 {[%emt 0:01:36]} 16. Rfc1 {[%emt 0:03:23]} Qd7 {[%emt 0:06:35]} 17. Ne2 {[%emt 0:03:27]} Rac8 {[%emt 0:03:18]} 18. Qb3 {[%emt 0:06:14] The position is equal.} Qg4 {[%emt 0:04:43] Against d3} 19. Kg2 {[%emt 0:01:03]} Bxd2 {[%emt 0:02:40]} 20. Rd1 {[%emt 0:08:33]} Ba5 {[%emt 0:10:00]} 21. Nf4 $1 {[%emt 0:01:23]} d4 {[%emt 0:00:25]} 22. h3 {[%emt 0:02:46]} Qd7 {[%emt 0:07:54]} 23. exd4 {[%emt 0:02:57]} cxd4 {[%emt 0:00:04]} 24. Rxd4 {[%emt 0:04:44]} Qc6 {[%emt 0:00:14]} 25. Nd5 {[%emt 0:01:34]} Nxd5 {[%emt 0:00:23]} 26. Qxd5 {[%emt 0:00:06]} Bb6 {[%emt 0:00:24]} 27. Qxc6 {[%emt 0:00:25]} Rxc6 {[%emt 0:00:05]} 28. Rd2 {[%emt 0:00:06]} Rfc8 {[%emt 0:00:26]} 29. Rbb2 {[%emt 0:04:06]} f6 {[%emt 0:03:34] Weighted Error Value: White=0.06 (flawless) /Black=0.08 (flawless) .  Mistake:       	White=1     	Black=1      Inaccurate:     	White=1     	Black=1      OK:         	White=9     	Black=9      Best:        	White=2     	Black=1      Strong:       	White=1     	Black=1} 1/2-1/2

[Event "26th Triest Festival 2024"]
[Site "Triest"]
[Date "2024.09.03"]
[Round "5.9"]
[White "Schnaider, Ilan"]
[Black "Gong, Qianyun"]
[Result "0-1"]
[Annotator "RC"]
[ECO "C15"]
[WhiteElo "2409"]
[BlackElo "2250"]
[PlyCount "118"]
[EventDate "2024.09.02"]
[EventType "swiss"]
[EventCountry "ITA"]
[SourceTitle "playchess.com"]
[Source "ChessBase"]
[SourceQuality "1"]
[TimeControl "5400+30"]

1. e4 {[%emt 0:00:04]} e6 {[%emt 0:00:16]} 2. d4 {[%emt 0:01:06]} d5 {[%emt 0:00:06]} 3. Nc3 {[%emt 0:00:11]} Bb4 {[%emt 0:00:20]} 4. Nge2 {[%emt 0:00:18]} Ne7 {[%emt 0:00:56]} 5. a3 {[%emt 0:00:42]} Ba5 {[%emt 0:00:04]} 6. b4 {[%emt 0:00:15]} Bb6 {[%emt 0:00:03]} 7. e5 {[%emt 0:01:04]} Bd7 {[%emt 0:00:06]} 8. a4 {[%emt 0:18:34]} a6 {[%emt 0:03:45]} 9. Nb1 {[%emt 0:10:39]} Nf5 {[%emt 0:08:34]} 10. c3 {[%emt 0:01:57]} f6 {[%emt 0:00:40]} 11. Nf4 {[%emt 0:25:19]} O-O {[%emt 0:01:22]} 12. exf6 {[%emt 0:02:45]} Qxf6 {[%emt 0:01:13]} 13. Bd3 {[%emt 0:01:01]} c6 {[%emt 0:15:16]} 14. Nh5 {[%emt 0:08:22]} Qf7 {[%emt 0:03:56]} 15. O-O {[%emt 0:01:49]} Bc7 {[%emt 0:21:07]} 16. f4 {[%emt 0:01:15]} Be8 {[%emt 0:03:12]} 17. Ng3 {[%emt 0:00:48]} Nd7 {[%emt 0:03:03]} 18. Nxf5 {[%emt 0:04:49]} exf5 {[%emt 0:00:04]} 19. Nd2 {[%emt 0:00:19]} Nf6 {[%emt 0:05:49]} 20. Bxf5 {[%emt 0:00:55]} Nh5 {[%emt 0:01:28]} 21. Bc2 {[%emt 0:01:19]} Bxf4 {[%emt 0:07:42]} 22. Nf3 {[%emt 0:02:38]} Qe7 {[%emt 0:04:28]} 23. Re1 {[%emt 0:07:20]} Qf6 {[%emt 0:02:35]} 24. Rf1 {[%emt 0:03:00]} Bg6 {[%emt 0:06:04]} 25. Bxf4 {[%emt 0:02:15]} Nxf4 {[%emt 0:00:24]} 26. Bxg6 {[%emt 0:01:42]} Qxg6 {[%emt 0:00:24]} 27. Qd2 {[%emt 0:00:18]} Rf5 {[%emt 0:07:25]} 28. Kh1 {[%emt 0:01:15]} Qd6 {[%emt 0:01:42]} 29. Ne5 {[%emt 0:01:02]} Raf8 {[%emt 0:00:11]} 30. Rf3 {[%emt 0:00:19]} Ng6 {[%emt 0:00:33]} 31. Raf1 {[%emt 0:00:39]} Rxf3 {[%emt 0:00:10]} 32. Nxf3 {[%emt 0:00:12]} h6 {[%emt 0:00:44]} 33. Re1 {[%emt 0:00:18]} Qf6 {[%emt 0:00:25]} 34. Qc2 {[%emt 0:01:43]} Nh4 {[%emt 0:01:09]} 35. Rf1 {[%emt 0:00:30]} Qe6 {[%emt 0:00:24]} 36. Qd3 {[%emt 0:01:01]} Qe4 {[%emt 0:00:44]} 37. Qd1 {[%emt 0:00:39]} Nxf3 {[%emt 0:00:22]} 38. Rxf3 {[%emt 0:00:24]} Rxf3 {[%emt 0:00:05]} 39. gxf3 {[%emt 0:00:03]} Qe3 {[%emt 0:00:06]} 40. Qb3 {[%emt 0:01:03]} Qxf3+ {[%emt 0:00:15]} 41. Kg1 {[%emt 0:00:00]} h5 {[%emt 0:00:16]} 42. Qc2 {[%emt 0:00:51]} Qg4+ {[%emt 0:01:23]} 43. Kf2 {[%emt 0:00:40]} Kf7 {[%emt 0:00:55]} 44. b5 {[%emt 0:00:21]} axb5 {[%emt 0:00:07]} 45. axb5 {[%emt 0:00:01]} Qf4+ {[%emt 0:01:08]} 46. Kg1 {[%emt 0:00:20]} h4 {[%emt 0:01:02]} 47. bxc6 {[%emt 0:00:27]} bxc6 {[%emt 0:00:02]} 48. Qd3 {[%emt 0:00:48]} Kf6 {[%emt 0:00:27]} 49. Qh7 {[%emt 0:01:05]} Qg4+ {[%emt 0:00:22]} 50. Kh1 {[%emt 0:00:07]} h3 {[%emt 0:00:29]} 51. Qc2 {[%emt 0:00:24]} Qf3+ {[%emt 0:00:37]} 52. Kg1 {[%emt 0:00:02]} g5 {[%emt 0:00:29]} 53. Qd2 {[%emt 0:00:51]} Kf5 {[%emt 0:00:11]} 54. Qb2 {[%emt 0:01:05]} Ke4 {[%emt 0:01:28]} 55. Qb1+ {[%emt 0:00:27]} Qd3 {[%emt 0:00:10]} 56. Qb2 {[%emt 0:00:31]} g4 {[%emt 0:00:46]} 57. Qa1 {[%emt 0:00:32]} Qe3+ {[%emt 0:00:18]} 58. Kf1 {[%emt 0:00:08]} Qf3+ {[%emt 0:00:03]} 59. Ke1 {[%emt 0:00:07]} Qh1+ {[%emt 0:00:00]} 0-1

[Event "26th Triest Festival 2024"]
[Site "Triest"]
[Date "2024.09.03"]
[Round "5.10"]
[White "Brilej, Jaka"]
[Black "Schlegel, Igor"]
[Result "1-0"]
[Annotator "TA"]
[ECO "D05"]
[WhiteElo "2280"]
[BlackElo "2212"]
[PlyCount "59"]
[EventDate "2024.09.02"]
[EventType "swiss"]
[EventCountry "ITA"]
[SourceTitle "playchess.com"]
[Source "ChessBase"]
[SourceQuality "1"]
[TimeControl "5400+30"]

{[%evp 17,59,0,0,0,0,0,0,0,0,0,0,0,0,0,0,0,0,0,0,0,0,0,0,0,0,0,0,0,0,0,0,0,0,0,0,0,0,0,543,526,685,683,671,385]} 1. d4 {[%emt 0:05:49]} d5 {[%emt 0:04:49]} 2. Nf3 {[%emt 0:00:59]} e6 {[%emt 0:00:07]} 3. e3 {[%emt 0:00:48]} Nf6 {[%emt 0:00:17]} 4. Bd3 {[%emt 0:00:12]} Bd6 {[%emt 0:00:34]} 5. O-O {[%emt 0:00:21]} O-O {[%emt 0:00:17]} 6. b3 {[%emt 0:00:07]} b6 {[%emt 0:00:04]} 7. Bb2 {[%emt 0:00:09]} Bb7 {[%emt 0:00:05]} 8. Nbd2 {[%emt 0:00:42]} Nbd7 {[%emt 0:00:29]} 9. Ne5 {[%emt 0:07:00]} Ne4 {[%emt 0:04:47]} 10. f3 {[%emt 0:06:41]} Nxd2 {[%emt 0:00:22]} 11. Qxd2 {[%emt 0:00:06]} c5 {[%emt 0:07:28]} 12. Rad1 {[%emt 0:07:57] The position is equal.} Rc8 {[%emt 0:19:38]} 13. Qe2 {[%emt 0:03:56]} Qc7 {[%emt 0:05:59]} 14. Nxd7 {[%emt 0:03:17]} Qxd7 {[%emt 0:00:05]} 15. dxc5 {[%emt 0:06:17]} Bxc5 {[%emt 0:08:42]} 16. f4 {[%emt 0:04:51]} Qe7 {[%emt 0:06:46]} 17. Rf3 {[%emt 0:02:49][%cal Od3h7] [#] aiming for Bxh7+!} f6 {[%emt 0:23:28][%cal Bf7f6,Bf6f5][%mdl 32]} 18. Rh3 {[%emt 0:09:30]} g6 {[%emt 0:01:02]} 19. Qg4 {[%emt 0:04:14][%cal Od3g6] Bxg6! would now be deadly.} f5 {[%emt 0:09:45]} 20. Qg3 {[%emt 0:01:27]} Bb4 {[%emt 0:04:25]} 21. Bd4 {[%emt 0:04:56]} Bc3 {[%emt 0:00:10]} 22. a4 {[%emt 0:02:03]} Rc7 {[%emt 0:00:19]} 23. Qf2 {[%emt 0:03:04]} Bc8 {[%emt 0:01:33][%cal Bb7c8,Bc8d7,Bd7b5][%mdl 32]} 24. Rg3 {[%emt 0:01:09][%cal Oh2h4]} Kf7 {[%emt 0:00:41]} 25. Qe2 {[%emt 0:01:45]} Ke8 {[%emt 0:00:27]} 26. Bb5+ {[%emt 0:05:07]} Bd7 {[%emt 0:00:37]} 27. Rd3 {[%emt 0:03:58]} Qb4 {[%emt 0:00:24][%mdl 8192] [#]} (27... Bxb5 $11 {and Black has nothing to worry.} 28. axb5 Bxd4 29. exd4 Kf7) 28. Bxc3 $1 $18 {[%emt 0:01:23] White is clearly winning.} Rxc3 {[%emt 0:00:01]} 29. Qd2 {[%emt 0:00:07]} Bxb5 {[%emt 0:00:40]} 30. Rxc3 {[%emt 0:01:19] Weighted Error Value: White=0.00 (flawless) /Black=0.36.  Loses game:     	---       	Black=1      Inaccurate:     	---       	Black=1      OK:         	White=10    	Black=8      Best:        	White=1     	---        Strong:       	White=1     	---} 1-0

[Event "26th Triest Festival 2024"]
[Site "Triest"]
[Date "2024.09.03"]
[Round "5.11"]
[White "Motola, Jacopo"]
[Black "Valsecchi, Alessio"]
[Result "0-1"]
[Annotator "TA"]
[ECO "D35"]
[WhiteElo "2207"]
[BlackElo "2475"]
[PlyCount "86"]
[EventDate "2024.09.02"]
[EventType "swiss"]
[EventCountry "ITA"]
[SourceTitle "playchess.com"]
[Source "ChessBase"]
[SourceQuality "1"]
[TimeControl "5400+30"]

{[%evp 19,86,31,18,37,28,8,37,0,18,20,37,29,21,18,42,-13,0,0,0,-9,-18,-27,-20,-75,-70,-116,-113,-208,-200,-170,-74,-82,-59,-37,-75,-61,-70,-76,-76,-95,-78,-122,-136,-116,-116,-167,-160,-184,-191,-195,-189,-210,-203,-210,-205,-201,-195,-187,-178,-215,-212,-621,-621,-561,-549,-608,-601,-555,-546]} 1. d4 {[%emt 1:31:00]} d5 {[%emt 0:07:02]} 2. c4 {[%emt 0:00:00]} e6 {[%emt 0:00:06]} 3. Nc3 {[%emt 0:00:00]} h6 {[%emt 0:00:27]} 4. Bf4 {[%emt 0:00:00]} a6 {[%emt 0:05:02]} 5. cxd5 {[%emt 0:00:00]} exd5 {[%emt 0:00:08]} 6. e3 {[%emt 0:00:00]} Nf6 {[%emt 0:00:18]} 7. Bd3 {[%emt 0:00:00]} c5 {[%emt 0:00:58]} 8. dxc5 {[%emt 0:00:00]} Bxc5 {[%emt 0:00:30]} 9. Nf3 {[%emt 0:00:00]} Nc6 {[%emt 0:00:53]} 10. O-O {[%emt 0:00:00]} O-O {[%emt 0:01:32]} 11. Rc1 {[%emt 0:00:00]} Ba7 {[%emt 0:03:54]} 12. h3 {[%emt 0:00:00]} Re8 {[%emt 0:07:30]} 13. Bc2 {[%emt 0:00:00] White is slightly better.} Be6 {[%emt 0:04:49]} 14. Ne2 {[%emt 0:00:00]} Qb6 {[%emt 0:16:40]} 15. Bb3 {[%emt 0:00:00]} Rac8 {[%emt 0:06:20]} 16. Ned4 {[%emt 0:00:00]} Na5 {[%emt 0:03:12]} 17. Ne5 {[%emt 0:00:00]} (17. Bc2 $14) 17... Rxc1 $11 {[%emt 0:02:04]} 18. Qxc1 {[%emt 0:00:00]} Nxb3 {[%emt 0:00:59]} 19. axb3 {[%emt 0:00:00]} Ne4 {[%emt 0:08:15]} 20. Qd1 {[%emt 0:00:00]} Bc8 {[%emt 0:03:24]} 21. Qh5 {[%emt 0:00:00]} (21. Ne2 $11) 21... Qf6 $17 {[%emt 0:00:52] aiming for ...Bxd4.} 22. Nef3 {[%emt 0:00:00]} (22. Bh2 $15) 22... g5 $1 {[%emt 0:02:50]} 23. Rc1 {[%emt 0:00:00]} Bxd4 $19 {[%emt 0:04:47]} ({Not} 23... gxf4 24. Rxc8 Rxc8 25. Qg4+ Kh7 26. Qxc8 fxe3 27. fxe3 $11) 24. Nxd4 {[%emt 0:00:00]} gxf4 {[%emt 0:06:23]} (24... Bd7 $1 $19 {has better winning chances.} 25. Rc7 Bc6) 25. Rxc8 $17 {[%emt 0:00:00]} Rxc8 {[%emt 0:00:05]} 26. Qg4+ {[%emt 0:00:00]} Kh7 {[%emt 0:00:07]} 27. Qxc8 {[%emt 0:00:00]} fxe3 {[%emt 0:00:06]} 28. fxe3 {[%emt 0:00:00][%mdl 4096] Endgame. KQN-KQN. Black continues to play with concentration.} Qf2+ {[%emt 0:00:07]} 29. Kh2 {[%emt 0:00:00] [#]} Nd2 $1 $36 {[%emt 0:07:06][%mdl 2048] ( -> ...Nf1+). White is under strong pressure.} ({Much weaker is} 29... Qxe3 $6 30. Qf5+ Kg7 31. Qe5+ Kh7 32. Qf5+ Kg8 33. Qc8+ Kh7 34. Qf5+ $11) 30. Qf5+ {[%emt 0:03:36]} Qxf5 {[%emt 0:00:11]} 31. Nxf5 {[%emt 0:00:03]} Nxb3 {[%emt 0:00:18] KN-KN} 32. Kg3 {[%emt 0:00:03]} (32. Ne7 $17) 32... Nc5 $19 {[%emt 0:02:32]} 33. Ne7 {[%emt 0:01:06]} Nd3 {[%emt 0:01:15]} 34. b3 {[%emt 0:00:09] [#]} a5 $1 {[%emt 0:01:20]} 35. Nxd5 {[%emt 0:00:57]} Nc1 {[%emt 0:00:07]} 36. Nc3 {[%emt 0:03:56]} Nxb3 {[%emt 0:00:07]} 37. Kf4 {[%emt 0:00:07]} Kg6 {[%emt 0:02:04]} 38. Ke5 {[%emt 0:00:10]} Nd2 {[%emt 0:00:37]} 39. e4 {[%emt 0:00:53]} Kg5 {[%emt 0:00:17]} 40. h4+ $2 {[%emt 0:02:05]} (40. Kd4) 40... Kxh4 {[%emt 0:01:06] Black is clearly winning.} 41. Kf4 {[%emt 0:00:31]} Nf1 {[%emt 0:00:35]} 42. e5 {[%emt 0:01:48]} Ng3 {[%emt 0:00:24]} 43. Nb5 {[%emt 0:00:16]} a4 {[%emt 0:00:51] Weighted Error Value: White=0.37/Black=0.07 (flawless) .  Mistake:       	White=6     	Black=1      Inaccurate:     	White=2     	Black=1      OK:         	White=6     	Black=17     Best:        	White=3     	Black=5      Strong:       	---       	Black=3} 0-1